Cogmind - Beta 17 @@@ ROGUE MODE // 2026.07.08 @ 15:35:04 Player: szymekc Result: Destroyed by Enhanced Grunt with Neutron Cannon Performance ------------- Evolutions (3) 1500 Regions Visited (9) 1800 Robots Destroyed (73) 365 Value Destroyed (2432) 2432 Prototype IDs (36) 720 Alien Tech Used (0) 0 Bonus (7550) 7550 TOTAL SCORE: 14367 Bonus ------- Prayed to X0-1V1 5000 Major X0-1V1 Interference 1950 Aligned with FarCom 300 Met Data Miner 300 Cogmind --------- Core Integrity 0/375 Matter 650/1000 Energy 965/1500 System Corruption 0% Temperature Cool (10) Movement Core (550) Ox10 Location -7/Data Miner Parts ------- > --- POWER (2) -------- (None) > --- PROPULSION (5) --- (None) > --- UTILITY (5) ------ Huge Storage Unit Microactuators > --- WEAPON (1) ------- Neutron Cannon > --- INVENTORY (25) --- Cryofiber Web Improved Sensor Array Advanced Terrain Scan Processor Seismic Detector Weapon Cycler Transmission Jammer Improved Shield Generator System Shield High-powered Tractor Beam Advanced Assault Cannon Heavy Rocket Launcher Plasma Cutter Katana Peak State ------------ > --- POWER ------------ Improved Deuterium Engine Micro Nuclear Core > --- PROPULSION ------- Light Treads Light Treads Armored Treads Armored Treads Advanced Treads > --- UTILITY ---------- Improved Cooling System Huge Storage Unit Improved Signal Interpreter Weapon Cycler X0-1V1's Piety Tracker > --- WEAPON ----------- Plasma Cannon Heavy Ion Cannon Heavy Ion Cannon Heavy Ion Cannon Heavy Plasma Cannon > --- INVENTORY -------- Improved Deuterium Engine Light Treads Light Treads Light Treads Cryofiber Web Improved Heat Sink Improved Cooling System Improved Sensor Array Advanced Terrain Scan Processor Seismic Detector Transmission Jammer Improved Light Armor Plating Improved Light Armor Plating Improved Shield Generator System Shield High-powered Tractor Beam EM Pulse Cannon EM Pulse Cannon Advanced Assault Cannon Heavy Rocket Launcher Plasma Cutter Katana [Rating: 71] Favorites ----------- Power Improved Deuterium Engine Engine Improved Deuterium Engine Power Core Micro Nuclear Core Propulsion Light Treads Treads Light Treads Utility X0-1V1's Piety Tracker Device X0-1V1's Piety Tracker Storage Huge Storage Unit Processor Improved Signal Interpreter Hackware Makeshift Hacking Suite Protection Improved Light Armor Plating Weapon Light Cannon Energy Gun EM Pulse Gun Energy Cannon Heavy Ion Cannon Ballistic Gun Assault Rifle Ballistic Cannon Light Cannon Launcher Heavy Rocket Launcher Special Weapon Mining Laser Slashing Weapon Katana Build | -11 -10 -10 -10 -9 -8 -7 -7 -7 -7 ------- Run | Yrd Mat Min Exi Min Mat Fac Low Low Dat Slots Evolved 6 | . . . . . 4 2 . . . Power 1 | . . . . . . 1 . . . Propulsion 2 | . . . . . 2 . . . . Utility 3 | . . . . . 2 1 . . . Weapon . | . . . . . . . . . . Parts Attached 76 | 7 11 1 . . 22 16 2 7 10 Power 10 | . 3 . . . 2 4 . . 1 Engine 6 | . 3 . . . 1 1 . . 1 Core 4 | . . . . . 1 3 . . . Reactor . | . . . . . . . . . . Propulsion 18 | 2 2 . . . 6 4 1 1 2 Treads 18 | 2 2 . . . 6 4 1 1 2 Leg . | . . . . . . . . . . Wheel . | . . . . . . . . . . Hover . | . . . . . . . . . . Flight . | . . . . . . . . . . Utility 27 | 2 3 . . . 10 3 1 4 4 Device 16 | 2 1 . . . 5 1 1 3 3 Storage 5 | . 2 . . . 3 . . . . Processor 1 | . . . . . . 1 . . . Hackware 1 | . . . . . . . . 1 . Protection 4 | . . . . . 2 1 . . 1 Artifact . | . . . . . . . . . . Weapon 21 | 3 3 1 . . 4 5 . 2 3 Energy Gun 1 | 1 . . . . . . . . . Energy Cannon 12 | . . . . . 4 3 . 2 3 Ballistic Gun 2 | 2 . . . . . . . . . Ballistic Cannon 3 | . 3 . . . . . . . . Launcher 1 | . . . . . . 1 . . . Special Weapon 1 | . . 1 . . . . . . . Impact Weapon . | . . . . . . . . . . Slashing Weapon 1 | . . . . . . 1 . . . Piercing Weapon . | . . . . . . . . . . Special Melee Weapon . | . . . . . . . . . . Unidentified Prototypes 2 | . 1 . . . . . . . 1 Parts Lost 28 | . 7 . . . 1 2 . . 18 Power 6 | . 2 . . . . 1 . . 3 Propulsion 10 | . 2 . . . . 1 . . 7 Utility 7 | . 1 . . . 1 . . . 5 Weapon 5 | . 2 . . . . . . . 3 Highest Loss Streak 18 | . 3 . . . 1 1 . . 18 To Critical Strikes 1 | . 1 . . . . . . . . Average Backups 17 | . 7 15 15 15 19 22 25 22 20 Power . | . . . . . . . 1 1 . Propulsion 1 | . . . . . 1 1 2 2 1 Utility 7 | . 2 4 4 4 6 10 11 12 11 Weapon 7 | . 4 10 10 10 9 9 9 6 4 Tool/Special . | . . . . . . . . . . Unused Backups 22 | . 1 . . 1 7 4 1 1 7 Power . | . . . . . . . . . . Propulsion . | . . . . . . . . . . Utility 9 | . . . . 1 1 1 . 1 5 Weapon 12 | . 1 . . . 6 3 1 . 1 Tool/Special 1 | . . . . . . . . . 1 Average Slot Usage (%) 98 | . 95 100 100 100 95 99 100 99 95 Engine 7 | . 12 14 14 14 . 3 7 5 5 Core 5 | . . . . . 8 10 7 5 4 Treads 32 | . 27 28 28 28 33 35 38 32 26 Device 19 | . 16 14 14 14 21 21 23 19 16 Storage 8 | . 9 14 14 14 9 7 7 5 5 Processor 3 | . . . . . . 6 7 5 3 Energy Cannon 7 | . . . . . 15 6 . 17 27 Ballistic Gun 1 | . 6 . . . . . . . . Ballistic Cannon 6 | . 18 21 15 28 2 . . . . Slashing Weapon 2 | . . . . . . 2 7 2 . Peak Build Rating 71 | 8 21 21 21 21 39 51 53 71 71 Average Rating 37 | 4 8 21 21 21 34 46 50 63 62 On Entrance 30 | . 8 21 21 21 21 39 50 53 71 Avg Prop Armor Cover (%) . | . . . . . . . . . . Naked Turns . | . . . . . . . . . . Heaviest Build 142 | 5 32 32 32 32 102 110 102 141 142 Greatest Support 108 | 40 40 40 40 40 82 102 108 108 108 Greatest Overweight (x) 1 | . . . . . 1 1 . 1 1 Average Overweight (x) . | . . . . . . . . . 1 Largest Inventory Capacity 25 | 5 15 15 15 15 25 25 25 25 25 Average Capacity 19 | 5 10 15 15 15 19 23 25 25 25 Most Carried 25 | 3 15 15 15 15 21 25 25 25 22 Average Carried 17 | 1 7 15 15 15 19 22 24 22 20 Final Capacity 25 | 5 15 15 15 15 25 25 25 25 25 Final Carried 25 | 3 15 15 15 15 21 25 25 22 13 Class Distribution -------------------- 66% | Scavenger-Mutant 19% | Mutant 13% | Scavenger-Gunner Dominant Class ---------------- Scavenger-Mutant | -10/Materials Mutant | -10/Mines Scavenger-Mutant | -10/Exiles Mutant | -9/Mines Scavenger-Mutant | -8/Materials Scavenger-Mutant | -7/Factory Scavenger-Mutant | -7/Lower Caves Scavenger-Gunner | -7/Lower Caves Scavenger-Gunner | -7/Data Miner Resources | -11 -10 -10 -10 -9 -8 -7 -7 -7 -7 ----------- Run | Yrd Mat Min Exi Min Mat Fac Low Low Dat Matter Collected 2479 | 297 484 . . 68 256 355 313 706 . Remotely . | . . . . . . . . . . Salvage Created 3231 | 158 835 . . 40 1127 443 92 353 183 Parts 170 | 12 49 . . 1 59 22 8 13 6 Haulers Intercepted 3 | . 2 . . . 1 . . . . Recyclers Shooed 5 | . 5 . . . . . . . . Parts Field Recycled . | . . . . . . . . . . Retrieved Matter . | . . . . . . . . . . Parts Self-Destructed 13 | . . . . . . . . 13 . Prevented . | . . . . . . . . . . Parts Restored . | . . . . . . . . . . Kills | -11 -10 -10 -10 -9 -8 -7 -7 -7 -7 ------- Run | Yrd Mat Min Exi Min Mat Fac Low Low Dat Combat Hostiles Destroyed 52 | . 17 . . 1 16 7 . 9 2 Guns 7 | . 7 . . . . . . . . Cannons 33 | . 10 . . 1 14 4 . 3 1 AOE 10 | . . . . . 1 3 . 6 . Classes Destroyed 15 | 2 6 . . . 4 1 1 1 . Worker 1 | . 1 . . . . . . . . Builder 1 | . 1 . . . . . . . . Tunneler 4 | 3 . . . . . 1 . . . Hauler 3 | . 2 . . . 1 . . . . Recycler 8 | 1 3 . . . 3 1 . . . Operator 2 | . . . . . 1 1 . . . Watcher 2 | . 1 . . . 1 . . . . Swarmer 7 | . 5 . . . . . . 2 . Grunt 27 | . 12 . . 1 8 3 . 3 . Brawler 3 | . . . . . 1 1 . 1 . Duelist 1 | . . . . . . . . 1 . Sentry 8 | . . . . . 4 2 . 2 . Hunter 3 | . . . . . 3 . . . . Programmer 1 | . . . . . . 1 . . . Enhanced Grunt 2 | . . . . . . . . . 2 Samaritan 2 | . . . . . . . 2 . . Best Kill Streak 7 | 4 6 . . 1 6 4 . 7 2 Combat Bots Only 7 | . 5 . . 1 4 4 . 7 2 Max Kills in Single Turn 3 | 1 2 . . 1 1 3 1 2 1 Gunslinging . | . . . . . . . . . . Exploded 3 | . . . . . 1 3 . 2 . Melee . | . . . . . . . . . . Uniques/NPCs Destroyed . | . . . . . . . . . . Combat | -11 -10 -10 -10 -9 -8 -7 -7 -7 -7 -------- Run | Yrd Mat Min Exi Min Mat Fac Low Low Dat Hostile Shots Fired 391 | . 140 . . 8 64 62 . 42 75 Missed 114 | . 42 . . 2 14 21 . 20 15 Hits 277 | . 98 . . 6 50 41 . 22 60 Melee 1 | . . . . . . 1 . . . Projectile 276 | . 98 . . 6 50 40 . 22 60 Critical Strikes 5 | . 2 . . . 3 . . . . Part Disruptions 4 | . . . . . . 1 . . 3 Damage Taken 5802 | . 1076 . . 86 728 763 . 365 2784 Core 779 | . 142 . . 28 115 95 . 38 361 Absorbed by Shields . | . . . . . . . . . . Ignored by Resistances 12 | . . . . . . . . 12 . Regen/Repaired (Parts) 84 | . 84 . . . . . . . . Core Remaining (%) 76 | 100 . . . 40 90 . . . . Volleys Fired 192 | 7 68 3 2 5 56 25 . 10 16 Largest 5 | 2 2 2 1 2 2 2 . 5 5 Hottest 365 | 40 70 100 30 60 135 135 . 365 365 Shots Fired 366 | 14 126 4 2 8 102 27 . 22 61 Gun 96 | 14 82 . . . . . . . . Cannon 263 | . 44 2 2 8 102 26 . 18 61 Launcher 5 | . . . . . . 1 . 4 . Special 2 | . . 2 . . . . . . . Kinetic 136 | 14 110 2 2 8 . . . . . Thermal 174 | . . 2 . . 75 26 . 18 53 Explosive 5 | . . . . . . 1 . 4 . Electromagnetic 51 | . 16 . . . 27 . . . 8 Robot Hit Streak 21 | 3 8 . . 5 10 13 . 21 9 Robot Miss Streak 5 | 1 5 . . 3 3 2 . 1 2 Penetration Max . | . . . . . . . . . . Secondary Targets 1 | . 1 . . . . . . . . Max Gunslinging Chain 1 | . 1 . . . . . . . . Shots Hit Robots 253 | 9 78 . . 5 73 15 2 26 45 Core Hits 121 | 6 35 . . 2 29 13 1 19 16 Critical Kills . | . . . . . . . . . . Critical Parts Destroyed 1 | . 1 . . . . . . . . Critical Strikes 2 | . 1 . . . . . . 1 . Destroy 1 | . 1 . . . . . . . . Sever 1 | . . . . . . . . 1 . Melee Attacks 30 | . . . . . . 10 3 12 5 Impact . | . . . . . . . . . . Slashing 30 | . . . . . . 10 3 12 5 Piercing . | . . . . . . . . . . Sneak Attacks 5 | . . . . . . 2 2 1 . Combat Hostiles . | . . . . . . . . . . Follow-up Attacks . | . . . . . . . . . . Damage Inflicted 6648 | 113 1199 . . 105 1856 674 114 1702 885 Guns 716 | 113 603 . . . . . . . . Cannons 3953 | . 542 . . 105 1811 318 . 372 805 Explosions 1128 | . 36 . . . 30 236 . 775 51 Melee 815 | . . . . . . 117 114 555 29 Ramming 36 | . 18 . . . 15 3 . . . Kinetic 1221 | 113 1003 . . 105 . . . . . Thermal 2726 | . 36 . . . 1269 318 . 372 731 Explosive 1011 | . . . . . . 236 . 775 . Electromagnetic 839 | . 142 . . . 572 . . . 125 Impact . | . . . . . . . . . . Slashing 815 | . . . . . . 117 114 555 29 Piercing . | . . . . . . . . . . Highest Corruption 11 | . . . . . . 8 11 . . Average Corruption 6 | . . . . . . 5 8 . . Corruption Purged . | . . . . . . . . . . Corruption Blocked . | . . . . . . . . . . Effects 36 | . . . . . . 12 24 . . Message Errors 11 | . . . . . . 2 9 . . Matter Fused 10 | . . . . . . 4 6 . . Heat Flow Errors 3 | . . . . . . 2 1 . . Energy Discharges 3 | . . . . . . 1 2 . . Parts Fused 1 | . . . . . . . 1 . . Data Loss (minor) 7 | . . . . . . 2 5 . . Data Loss (major) 1 | . . . . . . 1 . . . Overload Shots . | . . . . . . . . . . Overflow Damage 153 | . 19 . . . 10 27 52 45 . Projectiles 28 | . 8 . . . 10 10 . . . Explosions 56 | . 11 . . . . . . 45 . Melee 69 | . . . . . . 17 52 . . Knockbacks 8 | . 7 . . 1 . . . . . Impact . | . . . . . . . . . . Kinetic 8 | . 7 . . 1 . . . . . Secondary . | . . . . . . . . . . Self-Inflicted Damage 16 | . . . . . . 3 . . 13 Shots 2 | . . . . . . 1 . . 1 Rammed 11 | . 8 . . . 3 . . . . Targets Rammed 16 | . 10 . . . 5 1 . . . Kicked . | . . . . . . . . . . Crushed 5 | . 2 . . . 2 1 . . . Highest Temperature 236 | . 192 40 . 27 216 207 188 236 196 Average Temperature 60 | . 59 20 . 17 46 73 94 124 81 Received Heat Transfer 978 | . 501 . . 51 279 87 . 60 . Siege Activations . | . . . . . . . . . . Martial Activations . | . . . . . . . . . . Shielding Activations . | . . . . . . . . . . Robots Disrupted . | . . . . . . . . . . Combat Hostiles . | . . . . . . . . . . Robots Corrupted 2 | . 1 . . . 1 . . . . Combat Hostiles 1 | . . . . . 1 . . . . Parts Fried 7 | . 1 . . . 6 . . . . Impact Corruptions . | . . . . . . . . . . Robots Melted 1 | . . . . . . . . . 1 Combat Hostiles 1 | . . . . . . . . . 1 Parts Melted 8 | . . . . . 1 1 . . 6 Heat Transferred 4393 | . 50 . . . 1852 509 . 557 1425 Parts Sabotaged . | . . . . . . . . . . Parts Stolen . | . . . . . . . . . . Parts Stripped . | . . . . . . . . . . Power Chain Reactions 3 | . 1 . . . 1 . . . 1 Alert | -11 -10 -10 -10 -9 -8 -7 -7 -7 -7 ------- Run | Yrd Mat Min Exi Min Mat Fac Low Low Dat Maximum Alert Level 1 | . . . . . 1 . . . . Low Security (%) 97 | 100 100 100 . 100 90 100 . . . Level 1 2 | . . . . . 9 . . . . Level 2 . | . . . . . . . . . . Level 3 . | . . . . . . . . . . Level 4 . | . . . . . . . . . . Level 5 . | . . . . . . . . . . High Security . | . . . . . . . . . . Max Security . | . . . . . . . . . . Peak Influence 223 | 15 140 1 . 50 223 132 . . . Initial 79 | . . . . . 11 79 . . . Average 48 | 3 35 . . 13 100 37 . . . Influence Increases 1570 | 20 497 2 . 60 524 277 . 190 . Destroy 0b10 Robot/C 1000 | . 340 . . 20 320 140 . 180 . Destroy 0b10 Robot/NC 110 | 20 40 . . . 30 15 . 5 . Destroy Leader 212 | . 66 . . 10 94 40 . 2 . Allied During Kill 3 | . . . . . . . . 3 . Successful Hack 53 | . . . . . 16 37 . . . Disable Machine 45 | . . . . . 15 30 . . . Destroy Structure 42 | . 6 2 . . 19 15 . . . Lose Combat Pursuer 105 | . 45 . . 30 30 . . . . Influence Decreases 1570 | 20 497 1 1 30 380 408 43 190 . Entered New Map 131 | . . . 1 . 19 95 16 . . Time Decay 1353 | 20 427 1 . 30 351 307 27 190 . Lost Part 86 | . 70 . . . 10 6 . . . Squads Dispatched 7 | . 3 1 . . 1 1 . 1 . Investigation 3 | . 2 . . . 1 . . . . Extermination 1 | . . . . . . 1 . . . Reinforcement 1 | . 1 . . . . . . . . Assault 2 | . . 1 . . . . . 1 . Garrison . | . . . . . . . . . . Intercept . | . . . . . . . . . . Searches Triggered . | . . . . . . . . . . Construction Impeded . | . . . . . . . . . . Haulers Reinforced . | . . . . . . . . . . Active Scanning Responses . | . . . . . . . . . . Cargo Convoy Interrupts . | . . . . . . . . . . Stealth | -11 -10 -10 -10 -9 -8 -7 -7 -7 -7 --------- Run | Yrd Mat Min Exi Min Mat Fac Low Low Dat Distress Signals 3 | . 2 . . . 1 . . . . Communications Jammed . | . . . . . . . . . . Distress Signals . | . . . . . . . . . . Times Spotted 90 | . 35 2 2 3 27 8 . 9 4 Peak Tracking Total 9 | . 7 6 9 3 4 4 . 7 4 Tactical Retreats 4 | . 2 . . 1 1 . . . . Traps | -11 -10 -10 -10 -9 -8 -7 -7 -7 -7 ------- Run | Yrd Mat Min Exi Min Mat Fac Low Low Dat Traps Triggered 3 | . 2 . . . . 1 . . . Indirectly . | . . . . . . . . . . Trap Hack Attempts . | . . . . . . . . . . Triggered . | . . . . . . . . . . Disarmed . | . . . . . . . . . . Reprogrammed . | . . . . . . . . . . Reused . | . . . . . . . . . . Traps Extracted . | . . . . . . . . . . Installed . | . . . . . . . . . . Triggered . | . . . . . . . . . . Machines | -11 -10 -10 -10 -9 -8 -7 -7 -7 -7 ---------- Run | Yrd Mat Min Exi Min Mat Fac Low Low Dat Machines Disabled 7 | . . . 2 . 1 2 . 1 1 Max in Single Turn 2 | . . . 1 . 1 2 . 1 1 Garrison Access 1 | . . . . . 1 . . . . Machines Repaired . | . . . . . . . . . . Machines Dismantled . | . . . . . . . . . . Machines Sabotaged . | . . . . . . . . . . Overloaded Fab Kills . | . . . . . . . . . . Hacking | -11 -10 -10 -10 -9 -8 -7 -7 -7 -7 --------- Run | Yrd Mat Min Exi Min Mat Fac Low Low Dat Machines Accessed 21 | . 4 . 2 . 5 6 . . 4 Terminals 11 | . 3 . . . 4 4 . . . Fabricators 1 | . . . . . . 1 . . . Repair Stations 2 | . 1 . . . . 1 . . . Recycling Units . | . . . . . . . . . . Scanalyzers . | . . . . . . . . . . Garrison Access 1 | . . . . . 1 . . . . Total Hacks 72 | . 8 . 8 . 10 13 . . 33 Successful 51 | . 3 . 8 . 2 5 . . 33 Failed 21 | . 5 . . . 8 8 . . . Catastrophic 6 | . 2 . . . 3 1 . . . Database Lockouts . | . . . . . . . . . . Manual 5 | . 1 . 1 . 1 2 . . . Terminals 22 | . 6 . . . 8 8 . . . Fabricators 3 | . . . . . . 3 . . . Repair Stations 4 | . 2 . . . . 2 . . . Recycling Units . | . . . . . . . . . . Scanalyzers . | . . . . . . . . . . Garrison Access 2 | . . . . . 2 . . . . Terminal Hacks 45 | . 1 . 8 . 1 2 . . 33 Record 18 | . . . 7 . . . . . 11 Part Schematic 13 | . . . . . . . . . 13 Robot Schematic 6 | . . . . . . . . . 6 Prototype ID Bank 4 | . . . . . . 1 . . 3 Branch Access Points 2 | . . . . . 1 1 . . . Locate Traps 1 | . 1 . . . . . . . . Proto ID Catalog 1 | . . . 1 . . . . . . Fabricator Hacks 1 | . . . . . . 1 . . . Network Status 1 | . . . . . . 1 . . . Repair Station Hacks 3 | . 2 . . . . 1 . . . Scan Component 1 | . 1 . . . . . . . . Repair 1 | . 1 . . . . . . . . Refit 1 | . . . . . . 1 . . . Recycling Unit Hacks . | . . . . . . . . . . Scanalyzer . | . . . . . . . . . . Garrison Access Hacks 1 | . . . . . 1 . . . . Seal Access 1 | . . . . . 1 . . . . Unauthorized Hacks 1 | . . . . . . 1 . . . Terminals . | . . . . . . . . . . Fabricators 1 | . . . . . . 1 . . . Haulers 1 | . . . . . . 1 . . . Repair Stations . | . . . . . . . . . . Recycling Units . | . . . . . . . . . . Scanalyzers . | . . . . . . . . . . Garrison Access . | . . . . . . . . . . Data Cores Recovered 2 | . . . . . 1 1 . . . Used . | . . . . . . . . . . Hacking Detections 12 | . 4 . . . 4 4 . . . Full Trace Events 2 | . 1 . . . 1 . . . . Feedback Events . | . . . . . . . . . . Feedback Blocked . | . . . . . . . . . . Robot Schematics Acquired 6 | . . . . . . . . . 6 Robots Built . | . . . . . . . . . . Authchips . | . . . . . . . . . . Time . | . . . . . . . . . . Total Robot Build Rating . | . . . . . . . . . . Part Schematics Acquired 13 | . . . . . . . . . 13 Parts Built . | . . . . . . . . . . Authchips . | . . . . . . . . . . Time . | . . . . . . . . . . Total Part Build Rating . | . . . . . . . . . . Part Studies Acquired . | . . . . . . . . . . Parts Repaired 1 | . 1 . . . . . . . . Time 26 | . 26 . . . . . . . . Parts Recycled . | . . . . . . . . . . Recycled Matter . | . . . . . . . . . . Retrieved Matter . | . . . . . . . . . . Retrieved Components . | . . . . . . . . . . Parts Scanalyzed . | . . . . . . . . . . Part Schematics Acquired . | . . . . . . . . . . Parts Damaged . | . . . . . . . . . . Bothacking | -11 -10 -10 -10 -9 -8 -7 -7 -7 -7 ------------ Run | Yrd Mat Min Exi Min Mat Fac Low Low Dat Used RIF Installer . | . . . . . . . . . . Robots Hacked . | . . . . . . . . . . Non-combat . | . . . . . . . . . . Combat . | . . . . . . . . . . Robot Hacks Applied . | . . . . . . . . . . Relay Couplers Released . | . . . . . . . . . . Fabnet Peak Effective % . | . . . . . . . . . . Robots Rewired 2 | . . . . . . . . 2 . Allies Hacked . | . . . . . . . . . . Hacks Repelled . | . . . . . . . . . . Allies | -11 -10 -10 -10 -9 -8 -7 -7 -7 -7 -------- Run | Yrd Mat Min Exi Min Mat Fac Low Low Dat Total Allies 3 | . . 1 . . . . . 2 . Largest Group 2 | . . 1 . . . . . 2 2 Highest-Rated Group 50 | . . 31 . . . . . 50 50 Highest-Rated Ally 31 | . . 31 . . . . . 30 30 Total Orders . | . . . . . . . . . . Ally Attacks 5 | . . 5 . . . . . . . Total Damage 103 | . . 103 . . . . . . . Kills 4 | . . 4 . . . . . . . Allies Corrupted . | . . . . . . . . . . Allies Melted . | . . . . . . . . . . X0-1V1 Amusement Gains 224 | . 9 40 60 . 10 10 . . 95 Good Acts 19 | . . . . 2 3 1 6 7 . Bad Acts 11 | . . . . . 2 6 3 . . Intel | -11 -10 -10 -10 -9 -8 -7 -7 -7 -7 ------- Run | Yrd Mat Min Exi Min Mat Fac Low Low Dat Active Infowar (turns) 3960 | 26 1476 . . . 47 829 1072 510 . Sensors 2449 | . . . . . 47 829 1072 501 . Terrain 201 | 14 187 . . . . . . . . Seismic 1502 | 26 1476 . . . . . . . . Jamming 9 | . . . . . . . . 9 . Robot Analysis Total . | . . . . . . . . . . Derelict Logs Recovered 2 | . . . . . . . 1 1 . Drone Launches . | . . . . . . . . . . Drone Recoveries . | . . . . . . . . . . Exploration | -11 -10 -10 -10 -9 -8 -7 -7 -7 -7 ------------- Run | Yrd Mat Min Exi Min Mat Fac Low Low Dat Turns Passed 7132 | 107 1723 34 443 184 895 1096 1072 1320 258 Spaces Moved 3376 | 48 695 14 274 103 403 518 653 596 72 Core 3 | 3 . . . . . . . . . Treads 3373 | 45 695 14 274 103 403 518 653 596 72 Legs . | . . . . . . . . . . Wheels . | . . . . . . . . . . Hover . | . . . . . . . . . . Flight . | . . . . . . . . . . Fastest Speed 50 | 50 160 160 160 160 155 156 159 164 241 Average Speed 171 | 153 160 160 160 160 157 172 161 205 241 Slowest Speed 244 | 160 160 160 160 160 236 242 164 244 241 Overloaded Moves . | . . . . . . . . . . Propulsion Burnouts . | . . . . . . . . . . Robots Hopped . | . . . . . . . . . . Potential Cave-ins . | . . . . . . . . . . Cave-ins Triggered 1 | . . . . . . 1 . . . Exploration Rate (%) 48 | 4 97 6 59 29 33 14 75 86 77 Regions Visited 9 Branch Regions 6 Pre-discovered Areas 2 | . . . 1 . . . . . 1 Known Exits Taken 4 | . . . . . 1 1 1 1 . Unknown Exits Taken 5 | 1 1 1 1 1 . . . . . Scrap Searched 12 | . . . . 1 . . 3 8 . Spaces Dug 15 | . . 2 . . 1 8 1 3 . Terrain Destroyed 71 | . 4 2 . . 19 14 1 29 2 Melee 12 | . . . . . . 8 1 3 . Projectile 20 | . . 2 . . 12 1 . 3 2 AOE 39 | . 4 . . . 7 5 . 23 . Terrain Rammed . | . . . . . . . . . . Walls Destroyed . | . . . . . . . . . . Machines Disabled . | . . . . . . . . . . Actions | -11 -10 -10 -10 -9 -8 -7 -7 -7 -7 --------- Run | Yrd Mat Min Exi Min Mat Fac Low Low Dat Total 4313 | 65 1172 17 276 116 558 673 665 658 113 Wait 458 | . 359 . . 7 23 62 . 2 5 Move 3367 | 47 694 13 273 102 402 517 652 595 72 Hop . | . . . . . . . . . . Pick Up 64 | 3 19 . . 1 21 13 3 4 . Fast Attach 21 | 6 5 . . . 5 3 1 1 . Attach 19 | . 4 . . . 1 3 . 4 7 Detach 3 | . . . . . 1 1 . 1 . Swap 87 | 2 9 1 1 . 23 26 1 16 8 Drop 47 | . 4 . . 1 21 12 5 4 . Fire 192 | 7 68 3 2 5 56 25 . 10 16 Melee 30 | . . . . . . 10 3 12 5 Ram . | . . . . . . . . . . Kick . | . . . . . . . . . . Crush 16 | . 10 . . . 5 1 . . . Escape Stasis . | . . . . . . . . . . Rewire 9 | . . . . . . . . 9 . Trap . | . . . . . . . . . . Miscellaneous . | . . . . . . . . . . Route ------- -11/Scrapyard -10/Materials (discovered 4 exits: [*Mat x3] / [*Min]) -10/Mines -10/Exiles -9/Mines (discovered 2 exits: *Mat x2) -8/Materials (discovered 2 exits: *Fac x2) -7/Factory (discovered 3 exits: Sto / *Low x2) -7/Lower Caves -7/Lower Caves (discovered 2 exits: Fac / *Dat) -7/Data Miner (discovered 1 exit: [*Pro]) History --------- Turn | Location | Event 8 | -11/Scrapyard | Discovered new exit (range 15) 108 | -11/Scrapyard | Entered Materials 258 | -10/Materials | Discovered new exit (range 6) 301 | -10/Materials | Build established: Mutant 318 | -10/Materials | Discovered new exit (range 3) 547 | -10/Materials | Repaired Lgt. Treads 746 | -10/Materials | Discovered new exit (range 16) 876 | -10/Materials | Core integrity fell below 50% 902 | -10/Materials | Discovered new exit (range 11) 919 | -10/Materials | Lost 3 parts (1p2n) 1137 | -10/Materials | Build established: Scavenger-Mutant 1724 | -10/Materials | Prayed at D.C.S.S. Altar Unit 1831 | -10/Materials | Entered Mines 1832 | -10/Mines | Assembled infested the area 1832 | -10/Mines | Met a Derelict testing a Signal Generator 1857 | -10/Mines | Deemed a non-threat by the Exiles lab entrance 1858 | -10/Mines | Discovered new exit (range 5) 1865 | -10/Mines | Entered Exiles 1909 | -10/Exiles | Met 8R-AWN 1933 | -10/Exiles | Met EX-HEX 2001 | -10/Exiles | Learned location of Zion (-6) 2005 | -10/Exiles | Met EX-DEC 2027 | -10/Exiles | Met EX-BIN 2049 | -10/Exiles | Aligned with FarCom system 2051 | -10/Exiles | Given EX-Vault access code 2089 | -10/Exiles | Opened EX-Vault 2129 | -10/Exiles | Warned to stay clear of 0b10 Research branches 2235 | -10/Exiles | Discovered new exit (range 14) 2268 | -10/Exiles | Attacked by the Exiles 2308 | -10/Exiles | Entered Mines 2323 | -9/Mines | Discovered new exit (range 15) 2352 | -9/Mines | Discovered new exit (range 12) 2467 | -9/Mines | Melee accuracy permanently improved by X0-1V1 (+5%; -50 max core) 2492 | -9/Mines | Entered Materials 2492 | -8/Materials | Evolved 4 slots: Propulsion x2, Utility x2 2552 | -8/Materials | Build established: Mutant 2978 | -8/Materials | Build established: Scavenger-Mutant 3018 | -8/Materials | Identified exit to Factory 3018 | -8/Materials | X0-1V1 revealed exit location to -7/Factory 3133 | -8/Materials | X0-1V1 downgraded hostiles (x2) 3197 | -8/Materials | Heat dissipation permanently improved by X0-1V1 (+15; -75 max core) 3294 | -8/Materials | Discovered exit to Factory (range 10) 3387 | -8/Materials | Entered Factory 3387 | -7/Factory | Evolved 2 slots: Power x1, Utility x1 3567 | -7/Factory | X0-1V1 redirected Transport squads to designated parking area 3669 | -7/Factory | Identified exit to Storage 3669 | -7/Factory | Identified exit to Lower Caves 3680 | -7/Factory | X0-1V1 enhanced Transport squad support 3705 | -7/Factory | X0-1V1 mutated your Weapon slot to Propulsion slot 3887 | -7/Factory | Crushed by falling debris 4140 | -7/Factory | X0-1V1 sent you into danger 4483 | -7/Factory | Entered Lower Caves 4603 | -7/Lower Caves | Mass support permanently improved by X0-1V1 (+6; -200 max core) 4718 | -7/Lower Caves | Encountered a Warlord checkpoint 4907 | -7/Lower Caves | Learned Factory stockpile data 4910 | -7/Lower Caves | Found DCF Scrap (14 items) 5044 | -7/Lower Caves | System corruption reached 10% 5067 | -7/Lower Caves | X0-1V1 activates XOMVISION 5214 | -7/Lower Caves | Entered a destroyed Warlord outpost 5252 | -7/Lower Caves | X0-1V1 opened Sealed Heavy Doors 5442 | -7/Lower Caves | Discovered new exit (range 10) 5456 | -7/Lower Caves | Identified exit to Lower Caves 5555 | -7/Lower Caves | Entered another Lower Caves area 5557 | -7/Lower Caves | Attracted the attention of an 0b10 checkpoint 5599 | -7/Lower Caves | Encountered a Warlord checkpoint 5674 | -7/Lower Caves | X0-1V1 activates XOMVISION 5888 | -7/Lower Caves | Spotted B-75 Beast 6078 | -7/Lower Caves | Attracted the attention of an 0b10 outpost 6089 | -7/Lower Caves | Weapon slot count temporarily expanded by X0-1V1 (+4) 6115 | -7/Lower Caves | Destroyed 7 combat bots 6395 | -7/Lower Caves | Build established: Scavenger-Gunner 6426 | -7/Lower Caves | Discovered new exit (range 6) 6440 | -7/Lower Caves | Identified exit to Data Miner 6501 | -7/Lower Caves | Identified exit to Factory 6501 | -7/Lower Caves | X0-1V1 revealed exit location to -6/Factory 6875 | -7/Lower Caves | Entered Data Miner 6875 | -7/Data Miner | Accompanied by 2 allies 6875 | -7/Data Miner | Discovered new exit (range 6) 6921 | -7/Data Miner | Met Data Miner 6994 | -7/Data Miner | Learned location of Section 7 (-2) 6994 | -7/Data Miner | Acquired the access code to Warlord's prototype stash 7019 | -7/Data Miner | Received God Mode back door access code from Data Miner 7040 | -7/Data Miner | Data Conduit disabled 7109 | -7/Data Miner | Core integrity fell below 50% 7118 | -7/Data Miner | Core integrity fell below 20% 7133 | -7/Data Miner | Destroyed by Enhanced Grunt with Neutron Cannon Last Messages --------------- 07106_ Lgt. Treads destroyed. 07111_ Plasma Cannon destroyed. 07111_ Imp. Light Armor Plating destroyed. 07112_ Prototype Storage melted. 07112_ Enhanced Grunt destroyed. 07115_ Hvy. Plasma Cannon destroyed. 07115_ Hvy. Ion Cannon destroyed. 07115_ Arm. Treads destroyed. 07120_ Imp. Heat Sink destroyed. 07125_ Arm. Treads destroyed. 07128_ Chain reaction triggered in Antimatter Reactor. 07129_ Weapon slot count returns to normal. 07129_ Hvy. Ion Cannon, EM Pulse Cannon, EM Pulse Cannon tossed aside. 07131_ Imp. Deuterium Engine destroyed. 07131_ Imp. Cooling System destroyed. 07132_ X0-1V1 is amused. 07132_ Acquired Prototype Energy Cannon. 07132_ Identified Neutron Cannon. 07133_ Lgt. Treads destroyed. 07133_ X0-1V1 chortles! Map ----- +----------------------------------------------------+ | | | | | | | | | | | | | | | | | | | | | | | | | | | | | | | | | | | | | ????????????????????????????????? | | ????????????????????????????????? | | ????????????????????????????????? | | ????????????????????????????????? | | ?????###??##????????????????????? | | ????##;;##;##########???????????? | | ????#" !!%!"""""""""######??????? | | ???#"""]@!% ! """"""""####### | | ??#""""]]= | | ??#"""" = | | ??#"""" g %!% | | ??#"""" ! | | ??#"""" | | ???""""" """"""""" | | ????""""""" """"####### | | ?????"""""" g """"###?????? | | ?????"""""""" "#####???????? | | ??????######"## "#???????????? | | ???????????#"### "#???????????? | | ???????????#"### "#???????????? | | ???????????#"## "#???????????? | | ???????????#"## "#???????????? | | ?????????????# "#???????????? | | ?????????????### "#???????????? | | ???????????????# "##??????????? | | ??????????????## ""#??????????? | | ???????????#?## ""#??????????? | | ??????????##"#"X ""#??????????? | | ??????????""""" "####???????? | | ??????????""""" X"""""???????? | | ??????????##"#"X "##"#???????? | | ???????????#?## X""""#???????? | +----------------------------------------------------+ Best States ------------- Heat Dissipation 103 Energy Generation 27 Energy Capacity 1880 Matter Stores 710 Matter Capacity 1000 Sight Range 20 Robot Scan Range 15 Terrain Scan Range 16 Terrain Scan Density 10 Jamming Range 12 Base Temperature (-) 100 Armor Coverage 150 Resistance: KI 49 Weapon Cycling 15 Melee Speed Boost 20 Evasion (%) 40 Recoil Reduction 5 Item Schematics ----------------- Combat Drone Bay | -7/Data Miner | Free Lgt. Regenerative Plating | -7/Data Miner | Free Cld. Aerolev Unit | -7/Data Miner | Free Thermal Defense Suite | -7/Data Miner | Free Antimatter Cannon | -7/Data Miner | Free Antigrav System | -7/Data Miner | Free Point Defense System | -7/Data Miner | Free Variable Charge Gun | -7/Data Miner | Free Imp. Shock Absorption System | -7/Data Miner | Free Phase Shifter | -7/Data Miner | Free Impulse Thruster | -7/Data Miner | Free Imp. Corruption Screen | -7/Data Miner | Free Adv. Particle Charger | -7/Data Miner | Free Robot Schematics ------------------ B-48 Gladiator | -7/Data Miner | Free A-15 Conveyor | -7/Data Miner | Free G-50 Soldier | -7/Data Miner | Free M-14 Sweeper | -7/Data Miner | Free M-22 Extractor | -7/Data Miner | Free Y-54 Guardian | -7/Data Miner | Free Fabricated ------------ Nothing Repaired ---------- Lgt. Treads | 40% | -10/Materials Studied --------- None Alien Tech Used ----------------- None Achievements -------------- None Challenges ------------ None Game ------ Seed RecyclingNuclearMace Manual? 0 Play Time 00:37:09 Cumulative 1334.0 hours Start 2026.07.08 @ 14:58:06 End 2026.07.08 @ 15:35:04 Sessions 1 Manual Loads 0 Difficulty Rogue Special Mode None Game No. 425 Rogue 423 Adventurer 2 Explorer 0 Win Type - Total 116 Types 34/28/26/2/1/1/17/3/1/3 Lore% 98 Gallery% 92 Achievement% 92 Wizard Run 0 Options --------- Layout 0 ASCII 0 Keyboard 1 Movement Numpad Keybinds 0 Fullscreen 1 Font 24/Smallcaps Map View 76x50 Zoom Use 0% Tactical HUD 1 Map Filters NONE Filters NONE Steam 1 RUN: 7d7e2774-13f0-4cf9-9969-bf712ffefd87